bitfinex/quotes_BTCUSD_20250525
["timestamp","ask_amount","ask_price","bid_price","bid_amount"]
[1748206546151,0.34154442,107550.0,107540.0,0.002]
[1748206546301,0.35024727,107550.0,107540.0,0.002]
[1748206548275,0.36442159,107550.0,107540.0,0.002]
[1748206548908,0.35024727,107550.0,107540.0,0.002]
[1748206549728,0.35024727,107550.0,107540.0,0.77857515]
[1748206550360,0.38168775,107550.0,107540.0,0.77857515]
[1748206550569,0.36568775,107550.0,107540.0,0.77857515]
[1748206552114,0.36568775,107550.0,107540.0,0.002]
[1748206552412,0.36568775,107550.0,107540.0,0.77857515]
[1748206553368,0.37949118,107550.0,107540.0,0.77857515]
[1748206558794,0.41236205,107550.0,107540.0,0.77857515]
[1748206559728,0.42854587,107550.0,107540.0,0.77857515]
[1748206559918,0.43937531,107550.0,107540.0,0.77857515]
[1748206560776,0.42417531,107550.0,107540.0,0.77857515]
[1748206564609,0.42417531,107550.0,107540.0,0.77357515]
[1748206566396,0.195276,107540.0,107530.0,0.17954]
[1748206566639,0.195276,107540.0,107530.0,0.95611515]
[1748206566894,0.195276,107540.0,107530.0,0.80747515]
[1748206568030,0.195276,107540.0,107530.0,0.80847515]
[1748206568662,0.195276,107540.0,107530.0,0.80947515]
[1748206573972,0.2045746,107540.0,107530.0,0.99546975]
[1748206574199,0.01859729,107540.0,107530.0,1.03266736]
[1748206574405,0.21387346,107540.0,107530.0,1.01406895]
[1748206574854,0.0092986,107540.0,107530.0,1.02336833]
[1748206575098,0.03719362,107540.0,107530.0,1.03266745]
[1748206575704,0.2324697,107540.0,107530.0,1.03266745]
[1748206576171,0.08898098,107550.0,107540.0,0.24477285]
[1748206576335,0.29353629,107550.0,107540.0,1.00275123]
[1748206576498,0.29294435,107550.0,107540.0,1.01204992]
[1748206576850,0.28364679,107550.0,107540.0,0.80747515]
[1748206577466,0.28364679,107550.0,107540.0,1.00275123]
[1748206577684,0.28364679,107550.0,107540.0,0.97185123]
[1748206578328,0.28464679,107550.0,107540.0,0.97185123]
[1748206578499,0.28464679,107550.0,107540.0,0.96255246]
[1748206578715,0.27534905,107550.0,107540.0,0.96255246]
[1748206579121,0.27534905,107550.0,107540.0,0.77657515]
[1748206580776,0.27534905,107550.0,107540.0,0.79207515]
[1748206581581,0.27534905,107550.0,107540.0,0.80747515]
[1748206581816,0.27534905,107550.0,107540.0,0.99345246]
[1748206582224,0.24247818,107550.0,107540.0,0.99345246]
[1748206582954,0.24247818,107550.0,107540.0,1.00275132]
[1748206584384,0.24247818,107550.0,107540.0,0.80747515]
[1748206591758,0.24247818,107550.0,107540.0,0.99345246]
[1748206592651,0.30681568,107550.0,107540.0,0.99345246]
[1748206593747,0.31611342,107550.0,107540.0,1.00275132]
[1748206593939,0.12085489,107550.0,107540.0,1.12019242]
[1748206594141,0.1121497,107550.0,107540.0,1.12019242]
[1748206594351,0.1121497,107550.0,107540.0,2.23676757]
[1748206594352,0.10285231,107550.0,107540.0,2.23676757]
[1748206594973,0.10285231,107550.0,107540.0,2.26464457]
[1748206596583,0.03851481,107550.0,107540.0,2.26464457]
[1748206604309,0.03851481,107550.0,107540.0,2.41892457]
[1748206605539,0.03851481,107550.0,107540.0,2.51592457]
[1748206605749,0.14140375,107560.0,107550.0,0.24545296]
[1748206605955,0.092987,107570.0,107560.0,0.24543309]
[1748206606153,0.092987,107570.0,107560.0,1.88812895]
[1748206606495,0.092987,107570.0,107560.0,1.91599795]
[1748206606678,0.092987,107570.0,107560.0,2.35299795]
[1748206607068,0.092987,107570.0,107560.0,2.3675388]
[1748206608050,0.092987,107570.0,107560.0,2.19444326]
[1748206608247,0.093987,107570.0,107560.0,2.19444326]
[1748206616867,0.093987,107570.0,107560.0,0.8143885]
[1748206617093,0.093987,107570.0,107560.0,2.32846241]
[1748206618277,0.093987,107570.0,107560.0,2.17990241]
[1748206618474,0.093987,107570.0,107560.0,2.38570241]
[1748206627968,0.093987,107570.0,107560.0,1.78207821]
[1748206630112,0.093987,107570.0,107560.0,1.63351821]
[1748206630383,0.093987,107570.0,107560.0,1.78207821]
[1748206631423,0.093987,107570.0,107560.0,1.76577821]
[1748206632908,0.093987,107570.0,107560.0,1.55194512]
[1748206633132,0.093987,107570.0,107560.0,1.73788784]
[1748206633633,0.093987,107570.0,107560.0,1.76577821]
[1748206637201,0.093987,107570.0,107560.0,0.34654765]
[1748206637420,0.15337391,107570.0,107560.0,1.22836921]
[1748206637625,0.16266983,107570.0,107560.0,1.56836921]
[1748206637834,0.16266983,107570.0,107560.0,1.22836921]
[1748206638070,0.16266983,107570.0,107560.0,1.56836921]
[1748206638488,0.35789128,107570.0,107560.0,1.56836921]
[1748206640812,0.35789128,107570.0,107560.0,0.78264212]
[1748206641054,0.34859648,107570.0,107560.0,1.20597612]
[1748206641239,0.33930064,107570.0,107560.0,1.26499056]
[1748206641451,0.33930064,107570.0,107560.0,0.68379985]
[1748206641629,0.33930064,107570.0,107560.0,1.27428769]
[1748206643455,0.33930064,107570.0,107560.0,1.26499056]
[1748206643824,0.33930064,107570.0,107560.0,1.27428769]
[1748206644034,0.33930064,107570.0,107560.0,0.49785713]
[1748206644964,0.33930064,107570.0,107560.0,0.68379985]
[1748206645197,0.33930064,107570.0,107560.0,0.69309672]
[1748206645401,0.33930064,107570.0,107560.0,0.70239351]
[1748206645630,0.33930064,107570.0,107560.0,0.69309672]
[1748206645841,0.33930064,107570.0,107560.0,0.65434123]
[1748206646104,0.33930064,107570.0,107560.0,0.63017979]
[1748206646302,0.33930064,107570.0,107560.0,0.59614204]
[1748206646600,0.33930064,107570.0,107560.0,0.58604808]
[1748206646764,0.33930064,107570.0,107560.0,0.56463237]
[1748206646931,0.33930064,107570.0,107560.0,0.54174922]
[1748206647138,0.33930064,107570.0,107560.0,0.52344859]
[1748206647338,0.33930064,107570.0,107560.0,0.50231867]
[1748206647587,0.33930064,107570.0,107560.0,0.35309672]
[1748206647734,0.36610042,107570.0,107560.0,0.35309672]
[1748206648149,0.37628466,107570.0,107560.0,0.35309672]
[1748206649488,0.37628466,107570.0,107560.0,0.69309672]
[1748206652672,0.37628466,107570.0,107560.0,1.38359741]
[1748206653893,0.1810626,107570.0,107560.0,1.40219073]
[1748206654129,0.13097102,107570.0,107560.0,1.49173629]
[1748206654361,0.14956244,107570.0,107560.0,1.49173629]
[1748206654597,0.14026651,107570.0,107560.0,1.50743629]
[1748206654833,0.13097102,107570.0,107560.0,1.52393629]
[1748206655054,0.13097102,107570.0,107560.0,1.50743629]
[1748206655264,0.1402666,107570.0,107560.0,1.50743629]
[1748206655474,0.14956209,107570.0,107560.0,1.50743629]
[1748206656039,0.15885784,107570.0,107560.0,1.49173629]
[1748206656413,0.14956209,107570.0,107560.0,1.49173629]
[1748206657337,0.15885775,107570.0,107560.0,1.49173629]
[1748206661207,0.14026651,107570.0,107560.0,1.49173629]
[1748206662132,0.14956226,107570.0,107560.0,1.49173629]
[1748206662342,0.14956217,107570.0,107560.0,1.49173629]
[1748206663965,0.14956217,107570.0,107560.0,1.57790657]
[1748206665484,0.15885792,107570.0,107560.0,1.57790657]
[1748206667280,0.14026651,107570.0,107560.0,1.57790657]
[1748206667498,0.14956226,107570.0,107560.0,1.57790657]
[1748206669105,0.15885827,107570.0,107560.0,1.42934657]
[1748206669280,0.14956226,107570.0,107560.0,1.57790657]
[1748206670002,0.14026651,107570.0,107560.0,1.57790657]
[1748206670135,0.15885793,107570.0,107560.0,1.57790657]
[1748206675149,0.16815394,107570.0,107560.0,1.57790657]
[1748206675348,0.15885793,107570.0,107560.0,1.57790657]
[1748206675559,0.38508007,107570.0,107560.0,1.55931334]
[1748206675778,0.38508076,107570.0,107560.0,1.35477653]
[1748206676017,0.38508076,107570.0,107560.0,1.55001638]
[1748206676437,0.38508076,107570.0,107560.0,1.55931325]
[1748206676678,0.38508076,107570.0,107560.0,1.55931334]
[1748206677752,0.38508076,107570.0,107560.0,1.56861021]
[1748206678585,0.37578492,107570.0,107560.0,1.55931343]
[1748206678953,0.37578492,107570.0,107560.0,1.56861039]
[1748206679506,0.37578492,107570.0,107560.0,1.57790726]
[1748206679766,0.37578492,107570.0,107560.0,1.56861039]
[1748206679966,0.37578492,107570.0,107560.0,1.55931343]
[1748206680589,0.37578492,107570.0,107560.0,1.56861039]
[1748206682449,0.37578492,107570.0,107560.0,1.55931343]
[1748206682665,0.36648891,107570.0,107560.0,1.55931343]
[1748206683426,0.36648891,107570.0,107560.0,0.86621653]
[1748206683634,0.34789646,107570.0,107560.0,1.36407366]
[1748206684716,0.34789646,107570.0,107560.0,1.55001638]
[1748206685732,0.34789646,107570.0,107560.0,1.36407366]
[1748206689395,0.34789646,107570.0,107560.0,1.35477653]
[1748206689596,0.34789646,107570.0,107560.0,1.36407366]
[1748206694454,0.34789646,107570.0,107560.0,1.35477653]
[1748206694586,0.34789646,107570.0,107560.0,1.36407366]
[1748206695335,0.34789646,107570.0,107560.0,1.55931334]
[1748206705486,0.34789646,107570.0,107560.0,1.36407366]
[1748206705695,0.34789646,107570.0,107560.0,1.55001638]
[1748206705904,0.34789646,107570.0,107560.0,1.55931343]
[1748206714588,0.33199646,107570.0,107560.0,1.55931343]
[1748206715620,0.33199646,107570.0,107560.0,1.56861039]
[1748206715837,0.31689646,107570.0,107560.0,1.58720405]
[1748206716055,0.31689646,107570.0,107560.0,1.58720362]
[1748206716467,0.31689646,107570.0,107560.0,1.57790692]
[1748206716692,0.31689646,107570.0,107560.0,1.58720362]
[1748206717115,0.31689646,107570.0,107560.0,1.57790692]
[1748206722763,0.31689646,107570.0,107560.0,1.58720362]
[1748206723478,0.32619255,107570.0,107560.0,1.58720362]
[1748206723703,0.34478466,107570.0,107560.0,1.58720362]
[1748206727759,0.34478466,107570.0,107560.0,1.42934692]
[1748206727967,0.34478466,107570.0,107560.0,1.57790692]
[1748206730822,0.34478466,107570.0,107560.0,1.55931326]
[1748206731035,0.33548882,107570.0,107560.0,1.56861013]
[1748206731238,0.33548882,107570.0,107560.0,1.57790692]
[1748206737739,0.33548882,107570.0,107560.0,1.56861013]
[1748206738568,0.33548882,107570.0,107560.0,1.59648613]
[1748206740327,0.32619273,107570.0,107560.0,1.58718926]
[1748206743420,0.32619273,107570.0,107560.0,1.5778923]
[1748206745793,0.32619273,107570.0,107560.0,1.58718926]
[1748206750119,0.32619273,107570.0,107560.0,1.3457792]
[1748206750520,0.32619273,107570.0,107560.0,1.35507607]
[1748206752795,0.32619273,107570.0,107560.0,1.36437286]
[1748206753444,0.33548874,107570.0,107560.0,1.37366947]
[1748206753659,0.33548874,107570.0,107560.0,1.36437286]
[1748206758230,0.33548874,107570.0,107560.0,1.51623736]
[1748206759866,0.33548874,107570.0,107560.0,1.52553406]
[1748206760273,0.34478431,107570.0,107560.0,1.52553319]
[1748206760483,0.36337676,107570.0,107560.0,1.51623666]
[1748206760669,0.36337676,107570.0,107560.0,1.50694005]
[1748206760877,0.35408101,107570.0,107560.0,1.50694005]
[1748206761263,0.344785,107570.0,107560.0,1.49764335]
[1748206761486,0.33548873,107570.0,107560.0,1.51623666]
[1748206761705,0.344785,107570.0,107560.0,1.51623666]
[1748206762842,0.344785,107570.0,107560.0,1.36767666]
[1748206763042,0.344785,107570.0,107560.0,1.51623666]
[1748206763396,0.33548873,107570.0,107560.0,1.51623666]
[1748206763610,0.344785,107570.0,107560.0,1.51623666]
[1748206770432,0.344785,107570.0,107560.0,0.57241272]
[1748206770667,0.33548891,107570.0,107560.0,1.49764378]
[1748206770885,0.33548891,107570.0,107560.0,1.50694065]
[1748206771099,0.33548891,107570.0,107560.0,1.51623744]
[1748206772145,0.33548891,107570.0,107560.0,1.50694065]
[1748206774706,0.33548891,107570.0,107560.0,1.51623744]
[1748206774912,0.33548891,107570.0,107560.0,1.52553414]
[1748206775113,0.33548891,107570.0,107560.0,1.51623744]
[1748206775559,0.33548796,107570.0,107560.0,1.52553397]
[1748206775778,0.34478405,107570.0,107560.0,1.52553414]
[1748206776263,0.34478405,107570.0,107560.0,1.51623744]
[1748206776264,0.35408032,107570.0,107560.0,1.51623744]
[1748206776471,0.3540798,107570.0,107560.0,1.51623744]
[1748206776674,0.36337607,107570.0,107560.0,1.52553414]
[1748206777023,0.36337607,107570.0,107560.0,1.51623744]
[1748206777633,0.36337607,107570.0,107560.0,1.52553414]
[1748206778210,0.35408058,107570.0,107560.0,1.51623744]
[1748206778428,0.35408058,107570.0,107560.0,1.52553414]
[1748206779470,0.35408058,107570.0,107560.0,1.50694065]
[1748206780204,0.34478431,107570.0,107560.0,1.50694065]
[1748206780412,0.34478362,107570.0,107560.0,1.50694065]
[1748206780619,0.34478371,107570.0,107560.0,1.51623744]
[1748206780844,0.14026651,107570.0,107560.0,1.52553397]
[1748206781074,0.34478371,107570.0,107560.0,1.51623744]
[1748206781285,0.15885818,107570.0,107560.0,1.52553354]
[1748206781496,0.35407971,107570.0,107560.0,1.52553354]
[1748206781990,0.15885818,107570.0,107560.0,1.52553354]
[1748206782212,0.16815427,107570.0,107560.0,1.52553354]
[1748206782402,0.15885818,107570.0,107560.0,1.52553354]
[1748206783053,0.13097102,107570.0,107560.0,1.6150791]
[1748206783432,0.14026651,107570.0,107560.0,1.6150791]
[1748206784598,0.14956217,107570.0,107560.0,1.6150791]
[1748206785586,0.14026651,107570.0,107560.0,1.6150791]
[1748206786195,0.14956226,107570.0,107560.0,1.6150791]
[1748206786425,0.13097102,107570.0,107560.0,1.6150791]
[1748206786652,0.1402666,107570.0,107560.0,1.6150791]
[1748206788387,0.13305382,107570.0,107560.0,1.6150791]
[1748206788606,0.14234931,107570.0,107560.0,1.6150791]
[1748206788817,0.15164497,107570.0,107560.0,1.6150791]
[1748206790467,0.13305382,107570.0,107560.0,1.6150791]
[1748206799615,0.14234931,107570.0,107560.0,1.6150791]
[1748206799808,0.13305382,107570.0,107560.0,1.6150791]
[1748206805241,0.13305382,107570.0,107560.0,0.83840813]
[1748206805457,0.13305382,107570.0,107560.0,1.6150791]
[1748206816057,0.14865382,107570.0,107560.0,1.6150791]
[1748206816271,0.16405382,107570.0,107560.0,1.6150791]
[1748206816497,0.16405382,107570.0,107560.0,0.83840813]
[1748206816742,0.16405382,107570.0,107560.0,1.6150791]
[1748206819214,0.16405382,107570.0,107560.0,1.42867983]
[1748206819397,0.16405382,107570.0,107560.0,1.2750791]
[1748206819802,0.16405382,107570.0,107560.0,1.1265191]
[1748206820006,0.16405382,107570.0,107560.0,1.2750791]
[1748206820459,0.14865382,107570.0,107560.0,1.2750791]
[1748206821275,0.14865382,107570.0,107560.0,1.6150791]
[1748206822618,0.13305382,107570.0,107560.0,1.6150791]
[1748206825014,0.13305382,107570.0,107560.0,1.4665191]
[1748206825221,0.16485382,107570.0,107560.0,1.6150791]
[1748206826483,0.14875382,107570.0,107560.0,1.6150791]
[1748206830541,0.15804931,107570.0,107560.0,1.6150791]
[1748206830749,0.16405382,107570.0,107560.0,1.6150791]
[1748206831651,0.17334931,107570.0,107560.0,1.6150791]
[1748206831892,0.17334931,107570.0,107560.0,0.83840813]
[1748206832100,0.16405382,107570.0,107560.0,1.6150791]
[1748206832639,0.37786702,107570.0,107560.0,0.56311585]
[1748206832859,0.37786702,107570.0,107560.0,1.49764387]
[1748206833069,0.37786702,107570.0,107560.0,1.51623727]
[1748206833276,0.37786702,107570.0,107560.0,1.51623667]
[1748206834117,0.37786702,107570.0,107560.0,1.52553354]
[1748206834593,0.1826454,107570.0,107560.0,1.52553354]
[1748206835008,0.19194149,107570.0,107560.0,1.52553354]
[1748206835371,0.19194149,107570.0,107560.0,1.32744926]
[1748206836004,0.37786693,107570.0,107560.0,1.51339198]
[1748206837318,0.19194149,107570.0,107560.0,1.51339198]
[1748206837497,0.37786693,107570.0,107560.0,1.51339198]
[1748206837706,0.19194149,107570.0,107560.0,1.51339198]
[1748206839397,0.1826454,107570.0,107560.0,1.51339198]
[1748206839571,0.19194141,107570.0,107560.0,1.51339198]
[1748206848253,0.16405382,107570.0,107560.0,1.51339198]
[1748206848477,0.17334948,107570.0,107560.0,1.51339198]
[1748206848707,0.1826454,107570.0,107560.0,1.51339198]
[1748206849043,0.18264532,107570.0,107560.0,1.51339198]
[1748206851862,0.17334948,107570.0,107560.0,1.51339198]
[1748206852002,0.18264532,107570.0,107560.0,1.51339198]
[1748206852203,0.18264523,107570.0,107560.0,1.51339198]
[1748206853527,0.13305382,107570.0,107560.0,1.51339198]
[1748206853739,0.14234931,107570.0,107560.0,1.51339198]
[1748206853912,0.15164489,107570.0,107560.0,1.51339198]
[1748206857204,0.16094064,107570.0,107560.0,1.51339198]
[1748206857422,0.15164489,107570.0,107560.0,1.51339198]
[1748206857643,0.16094055,107570.0,107560.0,1.51339198]
[1748206858446,0.15164489,107570.0,107560.0,1.51339198]
[1748206858675,0.16094055,107570.0,107560.0,1.51339198]
[1748206860004,0.16094055,107570.0,107560.0,1.49765754]
[1748206860739,0.17734055,107570.0,107560.0,1.49765754]
[1748206862032,0.1866363,107570.0,107560.0,1.49765754]
[1748206862735,0.17734055,107570.0,107560.0,1.49765754]
[1748206863741,0.16094055,107570.0,107560.0,1.49765754]
[1748206864770,0.15164489,107570.0,107560.0,1.49765754]
[1748206865174,0.16094064,107570.0,107560.0,1.49765754]
[1748206865573,0.15164489,107570.0,107560.0,1.49765754]
[1748206867040,0.16094073,107570.0,107560.0,1.49765754]
[1748206867247,0.15164489,107570.0,107560.0,1.49765754]
[1748206867621,0.14234931,107570.0,107560.0,1.15765754]
[1748206867751,0.15164497,107570.0,107560.0,1.15765754]
[1748206868171,0.14234931,107570.0,107560.0,1.15765754]
[1748206868411,0.15164489,107570.0,107560.0,1.15765754]
[1748206870130,0.15164489,107570.0,107560.0,1.49765754]
[1748206872361,0.16094055,107570.0,107560.0,1.49765754]
[1748206872591,0.21173248,107570.0,107560.0,1.48836101]
[1748206872768,0.20243639,107570.0,107560.0,1.34909754]
[1748206873011,0.19314055,107570.0,107560.0,1.49765754]
[1748206873214,0.2024363,107570.0,107560.0,1.49765754]
[1748206873601,0.21173214,107570.0,107560.0,1.49765754]
[1748206874172,0.21173266,107570.0,107560.0,1.49765754]
[1748206877465,0.21151802,107570.0,107560.0,1.49765754]
[1748206877673,0.21151802,107570.0,107560.0,0.72098657]
[1748206877879,0.21151853,107570.0,107560.0,1.49765754]
[1748206878536,0.39744449,107570.0,107560.0,1.48836101]
[1748206878766,0.39744449,107570.0,107560.0,1.49765754]
[1748206878965,0.20222287,107570.0,107560.0,1.49765754]
[1748206880296,0.38814831,107570.0,107560.0,1.49765754]
[1748206880509,0.39744449,107570.0,107560.0,1.49765754]
[1748206885485,0.38814874,107570.0,107560.0,1.4790644]
[1748206885667,0.39744501,107570.0,107560.0,1.4883611]
[1748206885836,0.39744501,107570.0,107560.0,1.49765771]
[1748206886544,0.39744501,107570.0,107560.0,1.4883611]
[1748206888673,0.38814917,107570.0,107560.0,1.4883611]
[1748206890203,0.38814917,107570.0,107560.0,1.4790644]
[1748206890728,0.37885316,107570.0,107560.0,1.47906457]
[1748206890933,0.36955707,107570.0,107560.0,1.4697677]
[1748206891338,0.36955707,107570.0,107560.0,1.47906457]
[1748206891795,0.36955707,107570.0,107560.0,1.11667097]
[1748206891994,0.36026089,107570.0,107560.0,1.46047074]
[1748206892331,0.36026089,107570.0,107560.0,1.46976761]
[1748206892564,0.3695569,107570.0,107560.0,1.47906431]
[1748206892711,0.3695569,107570.0,107560.0,1.4790644]
[1748206893161,0.3695569,107570.0,107560.0,1.46976761]
[1748206895238,0.36955638,107570.0,107560.0,1.4790644]
[1748206895436,0.36295256,107570.0,107560.0,1.48836101]
[1748206895744,0.37224883,107570.0,107560.0,1.4883611]
[1748206895970,0.35365638,107570.0,107560.0,1.4883611]
[1748206896159,0.36295265,107570.0,107560.0,1.4883611]
[1748206896843,0.15143042,107570.0,107560.0,1.49765719]
[1748206897294,0.16072643,107570.0,107560.0,1.49765719]
[1748206897753,0.15143042,107570.0,107560.0,1.49765719]
[1748206897973,0.13283918,107570.0,107560.0,1.52945719]
[1748206898183,0.14213484,107570.0,107560.0,1.52945719]
[1748206898590,0.13283918,107570.0,107560.0,1.61900275]
[1748206912136,0.13283918,107570.0,107560.0,1.60260275]
[1748206931896,0.13283918,107570.0,107560.0,0.82593178]
[1748206932103,0.13283918,107570.0,107560.0,1.60260275]
[1748206933977,0.13283918,107570.0,107560.0,1.26260275]
[1748206934700,0.13283918,107570.0,107560.0,1.27900275]
[1748206938824,0.13283918,107570.0,107560.0,1.60260275]
[1748206942537,0.13283918,107570.0,107560.0,1.61760275]
[1748206943447,0.13283918,107570.0,107560.0,1.60260275]
[1748206951833,0.13283918,107570.0,107560.0,0.67737178]
[1748206952017,0.13283918,107570.0,107560.0,1.58720275]
[1748206953064,0.13283918,107570.0,107560.0,0.81053178]
[1748206953276,0.13283918,107570.0,107560.0,1.58720275]
[1748206954181,0.14823918,107570.0,107560.0,1.58720275]
[1748206955345,0.14823918,107570.0,107560.0,1.43864275]
[1748206955514,0.14823918,107570.0,107560.0,1.58720275]
[1748206957700,0.14823918,107570.0,107560.0,0.81053178]
[1748206957902,0.14823918,107570.0,107560.0,1.58720275]
[1748206958317,0.13283918,107570.0,107560.0,1.58720275]
[1748206965853,0.13283918,107570.0,107560.0,1.60260275]
[1748206975446,0.13283918,107570.0,107560.0,1.45404275]
[1748206975653,0.13283918,107570.0,107560.0,1.60260275]
[1748206978248,0.13283918,107570.0,107560.0,1.43864275]
[1748206978486,0.16443918,107570.0,107560.0,1.58720275]
[1748206982953,0.16443918,107570.0,107560.0,1.61507675]
[1748206991225,0.1830306,107570.0,107560.0,1.46651675]
[1748206991479,0.1830306,107570.0,107560.0,0.027874]
[1748206991480,0.36895655,107570.0,107560.0,0.027874]
[1748206991704,0.22733968,107560.0,107550.0,0.9719791]
[1748206991931,0.42965644,107560.0,107550.0,0.02792921]
[1748206992166,1.32507738,107560.0,107550.0,5.021e-05]
[1748206992392,1.34170103,107560.0,107550.0,5.021e-05]
[1748206992617,0.56503006,107560.0,107550.0,5.021e-05]
[1748206993298,0.56503006,107560.0,107550.0,0.00105021]
[1748206993854,0.55632517,107560.0,107550.0,5.021e-05]
[1748206994313,0.55832517,107560.0,107550.0,5.021e-05]
[1748206994486,0.55832517,107560.0,107550.0,0.00205021]
[1748206994688,0.55632517,107560.0,107550.0,0.00205021]
[1748206994896,0.55632517,107560.0,107550.0,5.021e-05]
[1748206995102,0.58776442,107560.0,107550.0,5.021e-05]
[1748206995314,0.59276442,107560.0,107550.0,0.00105021]
[1748206995888,0.59776442,107560.0,107550.0,0.00205021]
[1748206999494,0.56632517,107560.0,107550.0,0.00205021]
[1748207002701,0.34350889,107560.0,107550.0,0.00205021]
[1748207002907,0.48312804,107560.0,107550.0,0.77872118]
[1748207003116,0.54218248,107560.0,107550.0,0.77872118]
[1748207004042,0.54218248,107560.0,107550.0,0.00205021]
[1748207004585,0.64626889,107560.0,107550.0,0.00205021]
[1748207009394,0.32896804,107560.0,107550.0,0.00205021]
[1748207009600,0.63208804,107560.0,107550.0,0.00205021]
[1748207009810,0.62279108,107560.0,107550.0,0.69281173]
[1748207010192,0.62279108,107560.0,107550.0,0.00205021]
[1748207012271,0.31967108,107560.0,107550.0,0.00205021]
[1748207012472,0.62279108,107560.0,107550.0,0.00205021]
[1748207013829,0.0120828,107560.0,107550.0,0.19730822]
[1748207014028,0.0120828,107560.0,107550.0,1.28776269]
[1748207014255,0.0120828,107560.0,107550.0,1.38887029]
[1748207014483,0.0120828,107560.0,107550.0,1.39816829]
[1748207015012,0.0070828,107560.0,107550.0,1.39816829]
[1748207015229,0.0020828,107560.0,107550.0,1.39816829]
[1748207015442,0.0080828,107560.0,107550.0,1.39816829]
[1748207019187,0.0080828,107560.0,107550.0,2.08892981]
[1748207019393,0.0080828,107560.0,107550.0,1.39816829]
[1748207019829,0.0050828,107560.0,107550.0,1.39816829]
[1748207020550,0.0080828,107560.0,107550.0,1.39816829]
[1748207022207,0.0080828,107560.0,107550.0,2.08892981]
[1748207022819,0.0080828,107560.0,107550.0,2.10255251]
[1748207023857,0.0080828,107560.0,107550.0,2.25707251]
[1748207025185,0.0050828,107560.0,107550.0,2.25707251]
[1748207025391,0.0020828,107560.0,107550.0,2.25707251]
[1748207025588,0.0020828,107560.0,107550.0,2.25807251]
[1748207027251,0.0020828,107560.0,107550.0,2.25907251]
[1748207040467,0.12975638,107570.0,107560.0,1.96795613]
[1748207040682,0.20291926,107580.0,107570.0,1.27717472]
[1748207040889,0.20291926,107580.0,107570.0,1.36672028]
[1748207041526,0.20291926,107580.0,107570.0,1.39459028]
[1748207041832,0.20591926,107580.0,107570.0,1.39459028]
[1748207043907,0.20891926,107580.0,107570.0,1.39459028]
[1748207045449,0.20891926,107580.0,107570.0,1.40370707]
[1748207047955,0.13466298,107580.0,107570.0,1.40370707]
[1748207054259,0.13466298,107580.0,107570.0,1.55834707]
[1748207064920,0.13466298,107580.0,107570.0,1.70686707]
[1748207069954,0.13466298,107580.0,107570.0,2.56858485]
[1748207073246,0.13466298,107580.0,107570.0,2.55248485]
[1748207074966,0.13466298,107580.0,107570.0,2.54336806]
[1748207079611,0.13466298,107580.0,107570.0,2.57291063]
[1748207095786,0.13466298,107580.0,107570.0,2.26975063]
[1748207095991,0.13466298,107580.0,107570.0,2.57331063]
[1748207099339,0.13466298,107580.0,107570.0,2.58911063]
[1748207099771,0.13124692,107590.0,107580.0,0.55379334]
[1748207099965,0.11524692,107590.0,107580.0,2.98875785]
[1748207100527,0.11524692,107590.0,107580.0,3.01662185]
[1748207100909,0.11524692,107590.0,107580.0,2.99992185]
[1748207101138,0.03331222,107600.0,107590.0,2.10625275]
[1748207101343,0.03331222,107600.0,107590.0,2.34431831]
[1748207101692,0.04871222,107600.0,107590.0,2.34431831]
[1748207101899,0.04871222,107600.0,107590.0,2.37218231]
[1748207102393,0.04871222,107600.0,107590.0,2.37223253]
[1748207102805,0.05171222,107600.0,107590.0,2.37223253]
[1748207103567,0.05371222,107600.0,107590.0,2.37223253]
[1748207105144,0.02231222,107600.0,107590.0,2.37223253]
[1748207105355,0.0174,107610.0,107600.0,0.55375359]
[1748207105356,0.002,107610.0,107600.0,0.55375359]
[1748207105558,0.002,107610.0,107600.0,2.19577845]
[1748207106062,0.0183,107610.0,107600.0,2.19577845]
[1748207106612,0.0183,107610.0,107600.0,2.34989845]
[1748207106812,0.0183,107610.0,107600.0,2.35189845]
[1748207107260,0.0183,107610.0,107600.0,2.35389845]
[1748207107487,0.0183,107610.0,107600.0,2.31682558]
[1748207107897,0.002,107610.0,107600.0,2.31682558]
[1748207108261,0.0183,107610.0,107600.0,2.31682558]
[1748207109708,0.0347,107610.0,107600.0,2.31682558]
[1748207110355,0.0347,107610.0,107600.0,2.34468558]
[1748207117962,0.0347,107610.0,107600.0,0.79220628]
[1748207118167,0.0347,107610.0,107600.0,2.34468558]
[1748207118778,0.0347,107610.0,107600.0,0.79220628]
[1748207119254,0.0347,107610.0,107600.0,2.34468558]
[1748207120101,0.0347,107610.0,107600.0,2.49316558]
[1748207121137,0.002,107610.0,107600.0,2.49316558]
[1748207121356,0.002,107610.0,107600.0,2.52596558]
[1748207124759,0.002,107610.0,107600.0,2.54050643]
[1748207126294,0.002,107610.0,107600.0,2.54046643]
[1748207132402,0.002,107610.0,107600.0,2.52336643]
[1748207134064,0.002,107610.0,107600.0,2.552909]
[1748207138083,0.002,107610.0,107600.0,2.569909]
[1748207144183,0.002,107610.0,107600.0,2.552909]
[1748207144591,0.002,107610.0,107600.0,2.569109]
[1748207145513,0.002,107610.0,107600.0,2.552909]
[1748207147031,0.002,107610.0,107600.0,2.404429]
[1748207147219,0.002,107610.0,107600.0,2.552909]
[1748207152748,0.002,107610.0,107600.0,2.569209]
[1748207156573,0.002,107610.0,107600.0,2.552909]
[1748207156809,0.002,107610.0,107600.0,2.537209]
[1748207159882,0.002,107610.0,107600.0,2.388729]
[1748207160230,0.002,107610.0,107600.0,2.537209]
[1748207164787,0.002,107610.0,107600.0,2.388729]
[1748207165051,0.002,107610.0,107600.0,2.537209]
[1748207166705,0.03383741,107620.0,107600.0,2.22498793]
[1748207166946,0.03383741,107620.0,107610.0,1.98432394]
[1748207167171,0.03383741,107620.0,107610.0,1.98200119]
[1748207167380,0.03383741,107620.0,107610.0,2.00985819]
[1748207167788,0.03383741,107620.0,107610.0,2.0377356]
[1748207168688,0.03383741,107620.0,107610.0,2.3777356]
[1748207168923,0.03383741,107620.0,107610.0,2.3797356]
[1748207169368,0.03383741,107620.0,107610.0,2.3939551]
[1748207171731,0.0174,107620.0,107610.0,2.3939551]
[1748207172128,0.035,107620.0,107610.0,2.3939551]
[1748207177572,0.0174,107620.0,107610.0,2.3939551]
[1748207179490,0.0174,107620.0,107610.0,2.42349767]
[1748207180821,0.10805628,107630.0,107620.0,0.55371386]
[1748207181023,0.10805628,107630.0,107620.0,1.56797907]
[1748207181969,0.10905628,107630.0,107620.0,1.56797907]
[1748207184517,0.0348,107630.0,107620.0,1.56797907]
[1748207185326,0.0348,107630.0,107620.0,1.59583607]
[1748207188018,0.0172,107630.0,107620.0,1.59583607]
[1748207188445,0.001,107630.0,107620.0,1.59583607]
[1748207189465,0.001,107630.0,107620.0,1.61193607]
[1748207189884,0.001,107630.0,107620.0,1.38212221]
[1748207190087,0.001,107630.0,107620.0,1.56796127]
[1748207191031,0.001,107630.0,107620.0,1.59583607]
[1748207193669,0.0175,107630.0,107620.0,1.59583607]
[1748207194138,0.0336,107630.0,107620.0,1.59583607]